fUSD/lending_fUSD_20241110
["ID","MTS","AMOUNT","RATE_DAILY","PERIOD"]
[341914215,1731280270404,-500.0,0.00014998,2]
[341914216,1731280270413,-544.09,0.00014998,2]
[341914217,1731280270422,-500.0,0.00014998,2]
[341914218,1731280270433,-500.0,0.00014998,2]
[341914219,1731280270442,-500.0,0.00014998,2]
[341914220,1731280270452,-500.0,0.00014998,2]
[341914221,1731280270461,-500.0,0.00014998,2]
[341914222,1731280270470,-500.0,0.00014998,2]
[341914223,1731280270482,-500.0,0.00014998,2]
[341914224,1731280270490,-429.13011352,0.00014998,2]
[341914225,1731280270500,-500.0,0.00014998,2]
[341914226,1731280270509,-500.0,0.00014998,2]
[341914227,1731280270519,-2171.13,0.00014998,2]
[341914228,1731280270528,-2171.13,0.00014998,2]
[341914229,1731280270537,-2171.13,0.00014998,2]
[341914230,1731280270546,-549.45,0.00014998,2]
[341914231,1731280270555,-549.45,0.00014998,2]
[341914232,1731280270564,-500.0,0.00014998,2]
[341914233,1731280270573,-500.0,0.00014998,2]
[341914234,1731280270582,-500.0,0.00014998,2]
[341914235,1731280270591,-500.0,0.00014998,2]
[341914236,1731280270600,-500.0,0.00014998,2]
[341914237,1731280270609,-500.0,0.00014998,2]
[341914238,1731280270619,-500.0,0.00014998,2]
[341914239,1731280270628,-1275.79,0.00014998,2]
[341914240,1731280270638,-500.0,0.00014998,2]
[341914241,1731280270647,-1275.79,0.00014998,2]
[341914242,1731280270656,-1275.79,0.00014998,2]
[341914243,1731280270666,-1275.79,0.00014998,2]
[341914244,1731280270675,-1275.79,0.00014998,2]
[341914245,1731280270685,-540.98768035,0.00014998,2]
[341914246,1731280270933,-734.80231965,0.00014998,2]
[341914247,1731280270944,-1275.79,0.00014998,2]
[341914248,1731280270953,-500.0,0.00014998,2]
[341914249,1731280270963,-500.0,0.00014998,2]
[341914250,1731280270974,-500.0,0.00014998,2]
[341914251,1731280270984,-500.0,0.00014998,2]
[341914252,1731280270993,-500.0,0.00014998,2]
[341914253,1731280271003,-500.0,0.00014998,2]
[341914254,1731280271013,-573.69,0.00014998,2]
[341914255,1731280271022,-573.69,0.00014998,2]
[341914256,1731280271032,-500.0,0.00014998,2]
[341914257,1731280271042,-500.0,0.00014998,2]
[341914258,1731280271051,-500.0,0.00014998,2]
[341914259,1731280271062,-500.0,0.00014998,2]
[341914260,1731280271071,-1799.86,0.00014998,2]
[341914261,1731280271081,-1799.86,0.00014998,2]
[341914262,1731280271090,-4360.89,0.00014998,2]
[341914263,1731280271100,-1828.91818035,0.00014998,2]
[341914264,1731280271112,-2531.97181965,0.00014998,2]
[341914265,1731280271122,-4360.89,0.00014998,2]
[341914266,1731280271131,-1070.25,0.00014998,2]
[341914267,1731280271141,-1070.25,0.00014998,2]
[341914268,1731280271151,-960.63,0.00014998,2]
[341914269,1731280271160,-960.63,0.00014998,2]
[341914270,1731280271170,-960.63,0.00014998,2]
[341914271,1731280271180,-960.63,0.00014998,2]
[341914272,1731280271189,-601.58,0.00014998,2]
[341914273,1731280271199,-601.58,0.00014998,2]
[341914274,1731280271208,-601.58,0.00014998,2]
[341914275,1731280271218,-553.02530035,0.00014998,2]
[341914276,1731280272554,-48.55469965,0.00014998,2]
[341914277,1731280272564,-475.12531589,0.00014998,2]
[341914282,1731280844379,935.93,0.00011836,2]
[341914283,1731280855889,5000.0,0.00027,60]
[341914285,1731280893339,1000.0,0.00027,60]
[341914286,1731280913361,11621.27770729,0.00027,60]
[341914289,1731281080152,2650.47196862,0.00027,60]
[341914293,1731281201118,150.0,0.00013,5]
[341914322,1731281432483,-381.72,0.00013247,2]
[341914323,1731281432494,-1000.0,0.00013297,2]
[341914324,1731281432503,-300.0,0.00013479,2]
[341914325,1731281432513,-8776.31209106,0.0001348,2]
[341914326,1731281432522,-250.0,0.00013511,2]
[341914327,1731281432531,-150.0,0.00013596,2]
[341914328,1731281432540,-161777.2479,0.00013597,2]
[341914329,1731281432550,-873.43267952,0.00013599,2]
[341914330,1731281432559,-502.33647148,0.00013599,2]
[341914331,1731281432568,-26371.8,0.00013628,2]
[341914332,1731281432577,-27602.8135,0.00013642,2]
[341914333,1731281432587,-36815.27405817,0.0001369,2]
[341914334,1731281432596,-180.38947679,0.00013696,2]
[341914335,1731281432605,-500.0,0.00013696,2]
[341914336,1731281432614,-416.44843035,0.00013696,2]
[341914337,1731281432625,-500.0,0.00013696,2]
[341914338,1731281432635,-500.0,0.00013696,2]
[341914339,1731281432644,-500.0,0.00013696,2]
[341914340,1731281432653,-152.72488882,0.00013696,2]
[341914341,1731281432663,-228716.69942682,0.00013697,2]
[341914342,1731281432672,-5390.21,0.00013697,2]
[341914343,1731281432681,-386.54,0.00013697,2]
[341914344,1731281432690,-500.0,0.00013698,2]
[341914345,1731281432699,-500.0,0.00013698,2]
[341914346,1731281432708,-500.0,0.00013698,2]
[341914347,1731281432718,-500.0,0.00013698,2]
[341914348,1731281432727,-2344.23,0.00013698,2]
[341914349,1731281432737,-500.0,0.00013698,2]
[341914350,1731281432746,-200.0,0.00013699,2]
[341914351,1731281432755,-375.0,0.000137,2]
[341914352,1731281432768,-473.06,0.00013706,2]
[341914353,1731281432777,-23900.0,0.00013713,2]
[341914354,1731281432787,-300.0,0.00013738,2]
[341914355,1731281432796,-502.33647147,0.00013744,2]
[341914356,1731281432806,-873.43267949,0.00013785,2]
[341914357,1731281432815,-173.4,0.0001379,2]
[341914358,1731281432825,-250.0,0.00013794,2]
[341914359,1731281432837,-160.0,0.00013888,2]
[341914360,1731281432846,-502.33647147,0.00013888,2]
[341914361,1731281432856,-700.0,0.000139,5]
[341914362,1731281432866,-873.43267949,0.00013971,2]
[341914363,1731281432875,-1400.0,0.00014,5]
[341914364,1731281432884,-502.33647147,0.00014033,2]
[341914365,1731281432893,-935.93,0.000141,2]
[341914366,1731281432903,-2200.0,0.000141,5]
[341914367,1731281432913,-873.43267949,0.00014157,2]
[341914368,1731281432923,-502.33647147,0.00014177,2]
[341914369,1731281432932,-2900.0,0.000142,5]
[341914370,1731281432942,-157.12,0.00014235,2]
[341914371,1731281432951,-3700.0,0.000143,5]
[341914372,1731281432961,-502.33647147,0.00014322,2]
[341914373,1731281432970,-873.43267949,0.00014342,2]
[341914374,1731281432980,-700.0,0.000144,5]
[341914375,1731281432989,-502.33647147,0.00014466,2]
[341914376,1731281432999,-700.0,0.000145,5]
[341914377,1731281433008,-873.43267949,0.00014528,2]
[341914378,1731281433018,-426.22825879,0.00014587,2]
[341914379,1731281433027,-700.0,0.000146,5]
[341914380,1731281433036,-502.33647147,0.00014611,2]
[341914381,1731281433046,-150.0,0.00014614,2]
[341914382,1731281433055,-1937.62,0.00014616,2]
[341914384,1731281433065,-6157.1041,0.00014616,2]
[341914386,1731281433073,-174.43343251,0.00014618,2]
[341914388,1731281433083,-500.0,0.00014618,2]
[341914390,1731281433092,-500.0,0.00014618,2]
[341914392,1731281433101,-258.27513314,0.00014618,2]
[341914394,1731281433110,-500.0,0.00014618,2]
[341914396,1731281433120,-500.0,0.00014618,2]
[341914398,1731281433129,-500.0,0.00014618,2]
[341914400,1731281433139,-500.0,0.00014618,2]
[341914402,1731281433148,-400.0,0.00014618,2]
[341914404,1731281433157,-30898.2086,0.00014619,2]
[341914406,1731281433167,-500.0,0.00014619,2]
[341914408,1731281433176,-700.0,0.000147,5]
[341914410,1731281433186,-176.32943313,0.00014705,2]
[341914412,1731281433195,-255.0,0.00014711,2]
[341914414,1731281433204,-873.43267949,0.00014714,2]
[341914416,1731281433213,-500.0,0.00014715,2]
[341914417,1731281433222,-500.0,0.00014715,2]
[341914419,1731281433231,-1349.9,0.00014715,2]
[341914421,1731281433241,-1349.9,0.00014715,2]
[341914423,1731281433250,-500.0,0.00014715,2]
[341914425,1731281433259,-500.0,0.00014715,2]
[341914427,1731281433269,-926.39,0.00014715,2]
[341914429,1731281433278,-926.39,0.00014715,2]
[341914431,1731281433287,-2462.27,0.00014715,2]
[341914433,1731281433296,-2462.27,0.00014715,2]
[341914435,1731281433306,-2072.21,0.00014715,2]
[341914437,1731281433315,-2072.21,0.00014715,2]
[341914439,1731281433324,-880.84,0.00014715,2]
[341914441,1731281433333,-880.84,0.00014715,2]
[341914443,1731281433342,-664.51,0.00014715,2]
[341914445,1731281433351,-664.51,0.00014715,2]
[341914447,1731281433360,-500.0,0.00014715,2]
[341914449,1731281433372,-500.0,0.00014715,2]
[341914451,1731281433382,-500.0,0.00014715,2]
[341914453,1731281433391,-1463.86,0.00014715,2]
[341914455,1731281433400,-1463.86,0.00014715,2]
[341914457,1731281433409,-635.83,0.00014715,2]
[341914459,1731281433419,-635.83,0.00014715,2]
[341914461,1731281433428,-432.18335078,0.00014715,2]
[341914463,1731281433438,-500.0,0.00014715,2]
[341914465,1731281433447,-500.0,0.00014715,2]
[341914467,1731281433456,-500.0,0.00014715,2]
[341914469,1731281433466,-500.0,0.00014715,2]
[341914471,1731281433475,-542.30108415,0.00014715,2]
[341914473,1731281433484,-500.0,0.00014715,2]
[341914475,1731281433494,-500.0,0.00014715,2]
[341914477,1731281433503,-500.0,0.00014715,2]
[341914479,1731281433512,-500.0,0.00014715,2]
[341914481,1731281433521,-577.15888995,0.00014715,2]
[341914483,1731281433530,-2344.23,0.00014715,2]
[341914485,1731281433540,-500.0,0.00014716,2]
[341914487,1731281433549,-500.0,0.00014716,2]
[341914488,1731281433559,-506.67651816,0.00014716,2]
[341914490,1731281433568,-503.70215847,0.00014716,2]
[341914492,1731281433578,-500.0,0.00014716,2]
[341914494,1731281433587,-500.0,0.00014716,2]
[341914496,1731281433596,-495.46756991,0.00014716,2]
[341914498,1731281433606,-500.0,0.00014716,2]
[341914500,1731281433615,-500.0,0.00014716,2]
[341914502,1731281433629,-500.0,0.00014716,2]
[341914503,1731281433639,-500.0,0.00014716,2]
[341914504,1731281433648,-500.0,0.00014716,2]
[341914505,1731281433658,-500.0,0.00014716,2]
[341914506,1731281433668,-374.10441593,0.00014716,2]
[341914507,1731281433676,-500.0,0.00014716,2]
[341914508,1731281433686,-500.0,0.00014716,2]
[341914509,1731281433695,-500.0,0.00014716,2]
[341914510,1731281433704,-500.0,0.00014716,2]
[341914511,1731281433713,-250.06146935,0.00014716,2]
[341914512,1731281433722,-500.0,0.00014716,2]
[341914513,1731281433731,-312.24988318,0.00014716,2]
[341914514,1731281433741,-500.0,0.00014716,2]
[341914515,1731281433750,-500.0,0.00014716,2]
[341914516,1731281433760,-500.0,0.00014716,2]
[341914517,1731281433773,-500.0,0.00014716,2]
[341914518,1731281433782,-500.0,0.00014716,2]
[341914519,1731281433791,-500.0,0.00014716,2]
[341914520,1731281433800,-500.0,0.00014716,2]
[341914521,1731281433811,-500.0,0.00014716,2]
[341914522,1731281433820,-538.86510711,0.00014716,2]
[341914523,1731281433829,-500.0,0.00014716,2]
[341914524,1731281433840,-500.0,0.00014716,2]
[341914525,1731281433850,-598.77469746,0.00014716,2]
[341914526,1731281433860,-502.12466488,0.00014716,2]
[341914527,1731281433872,-500.0,0.00014716,2]
[341914528,1731281433884,-510.06268287,0.00014716,2]
[341914529,1731281433893,-500.0,0.00014716,2]
[341914530,1731281433902,-500.0,0.00014716,2]
[341914531,1731281433911,-402.47633593,0.00014716,2]
[341914532,1731281433920,-500.0,0.00014716,2]
[341914533,1731281433929,-500.0,0.00014716,2]
[341914534,1731281433939,-500.0,0.00014716,2]
[341914535,1731281433948,-500.0,0.00014716,2]
[341914536,1731281433957,-500.0,0.00014716,2]
[341914537,1731281433967,-500.0,0.00014716,2]
[341914538,1731281433976,-500.0,0.00014716,2]
[341914539,1731281433986,-500.0,0.00014716,2]
[341914540,1731281433996,-500.0,0.00014716,2]
[341914541,1731281434005,-1349.9,0.00014716,2]
[341914542,1731281434015,-500.0,0.00014716,2]
[341914543,1731281434025,-926.39,0.00014716,2]
[341914544,1731281434034,-2462.27,0.00014716,2]
[341914545,1731281434043,-2072.21,0.00014716,2]
[341914546,1731281434052,-880.84,0.00014716,2]
[341914547,1731281434061,-500.0,0.00014716,2]
[341914548,1731281434070,-664.51,0.00014716,2]
[341914549,1731281434079,-500.0,0.00014716,2]
[341914550,1731281434089,-1463.86,0.00014716,2]
[341914551,1731281434098,-635.83,0.00014716,2]
[341914552,1731281434107,-500.0,0.00014716,2]
[341914553,1731281434117,-500.0,0.00014716,2]
[341914554,1731281434127,-500.0,0.00014716,2]
[341914555,1731281434136,-500.0,0.00014719,2]
[341914556,1731281434146,-1349.9,0.00014719,2]
[341914557,1731281434155,-178.94334215,0.00014719,2]
[341914558,1731281434164,-926.39,0.00014719,2]
[341914559,1731281434173,-2462.27,0.00014719,2]
[341914560,1731281434183,-2072.21,0.00014719,2]
[341914561,1731281434192,-880.84,0.00014719,2]
[341914562,1731281434201,-664.51,0.00014719,2]
[341914563,1731281434211,-500.0,0.00014719,2]
[341914564,1731281434220,-1463.86,0.00014719,2]
[341914565,1731281434230,-635.83,0.00014719,2]
[341914566,1731281434239,-500.0,0.00014719,2]
[341914567,1731281434249,-500.0,0.00014719,2]
[341914568,1731281434258,-500.0,0.00014719,2]
[341914569,1731281434267,-500.0,0.00014724,2]
[341914570,1731281434276,-58156.26261699,0.00014725,2]
[341914571,1731281434285,-150.0,0.00014726,2]
[341914572,1731281434295,-150.0,0.00014734,2]
[341914573,1731281434304,-150.0,0.00014734,2]
[341914574,1731281434314,-150.0,0.00014742,2]
[341914575,1731281434323,-150.0,0.00014742,2]
[341914576,1731281434332,-150.0,0.00014743,2]
[341914577,1731281434341,-281.58492442,0.00014748,2]
[341914578,1731281434351,-4000.0,0.0001475,2]
[341914579,1731281434360,-150.0,0.00014752,2]
[341914580,1731281434369,-502.33647147,0.00014755,2]
[341914581,1731281434378,-150.0,0.00014758,2]
[341914582,1731281434388,-150.0,0.00014758,2]
[341914583,1731281434398,-150.0,0.00014761,2]
[341914584,1731281434407,-150.0,0.00014762,2]
[341914585,1731281434416,-150.0,0.00014762,2]
[341914586,1731281434426,-150.0,0.00014765,2]
[341914587,1731281434435,-150.0,0.0001477,2]
[341914588,1731281434444,-150.0,0.0001477,2]
[341914589,1731281434453,-150.0,0.00014772,2]
[341914590,1731281434463,-150.0,0.00014774,2]
[341914591,1731281434471,-150.0,0.00014774,2]
[341914592,1731281434480,-150.0,0.00014775,2]
[341914593,1731281434489,-420.0,0.00014775,2]
[341914594,1731281434498,-150.0,0.00014776,2]
[341914595,1731281434508,-150.0,0.00014776,2]
[341914596,1731281434517,-150.0,0.00014778,2]
[341914597,1731281434529,-150.0,0.00014782,2]
[341914598,1731281434539,-500.0,0.00014785,2]
[341914599,1731281434548,-500.0,0.00014785,2]
[341914600,1731281434557,-500.0,0.00014785,2]
[341914601,1731281434566,-500.0,0.00014785,2]
[341914602,1731281434576,-500.0,0.00014785,2]
[341914603,1731281434585,-500.0,0.00014785,2]
[341914604,1731281434594,-500.0,0.00014785,2]
[341914605,1731281434603,-500.0,0.00014785,2]
[341914606,1731281434612,-500.0,0.00014785,2]
[341914607,1731281434627,-500.0,0.00014785,2]
[341914608,1731281434635,-500.0,0.00014785,2]
[341914609,1731281434644,-500.0,0.00014785,2]
[341914610,1731281434654,-500.0,0.00014785,2]
[341914611,1731281434663,-500.0,0.00014785,2]
[341914612,1731281434672,-500.0,0.00014785,2]
[341914613,1731281434682,-500.0,0.00014785,2]
[341914614,1731281434691,-241.422169,0.00014785,2]
[341914615,1731281434700,-603.67,0.00014785,2]
[341914616,1731281434709,-826.68,0.00014785,2]
[341914617,1731281434718,-579.51,0.00014785,2]
[341914618,1731281434728,-849.69,0.00014785,2]
[341914619,1731281434736,-500.0,0.00014785,2]
[341914620,1731281434746,-500.0,0.00014785,2]
[341914621,1731281434755,-304.0,0.00014785,2]
[341914622,1731281434767,-500.0,0.00014785,2]
[341914623,1731281434776,-500.0,0.00014785,2]
[341914624,1731281434786,-150.0,0.00014785,2]
[341914625,1731281434795,-535.6569078,0.00014785,2]
[341914626,1731281434804,-4754.38174357,0.00014785,2]
[341914627,1731281434815,-1592.99,0.00014785,2]
[341914628,1731281434824,-500.0,0.00014785,2]
[341914629,1731281434833,-1356.96,0.00014785,2]
[341914630,1731281434843,-500.0,0.00014785,2]
[341914631,1731281434853,-500.0,0.00014785,2]
[341914632,1731281434862,-500.0,0.00014785,2]
[341914633,1731281434872,-500.0,0.00014786,2]
[341914634,1731281434882,-1349.9,0.00014786,2]
[341914635,1731281434891,-926.39,0.00014786,2]
[341914636,1731281434900,-2462.27,0.00014786,2]
[341914637,1731281434908,-2072.21,0.00014786,2]
[341914638,1731281434917,-880.84,0.00014786,2]
[341914639,1731281434926,-664.51,0.00014786,2]
[341914640,1731281434935,-500.0,0.00014786,2]
[341914641,1731281434944,-1463.86,0.00014786,2]
[341914642,1731281434953,-635.83,0.00014786,2]
[341914643,1731281434963,-500.0,0.00014786,2]
[341914644,1731281434972,-500.0,0.00014786,2]
[341914645,1731281434981,-500.0,0.00014786,2]
[341914646,1731281434990,-500.0,0.00014786,2]
[341914647,1731281434999,-500.0,0.00014786,2]
[341914648,1731281435009,-800.38,0.00014786,2]
[341914649,1731281435018,-1191.29,0.00014786,2]
[341914650,1731281435027,-2930.97,0.00014786,2]
[341914651,1731281435037,-500.0,0.00014786,2]
[341914652,1731281435046,-500.0,0.00014786,2]
[341914653,1731281435055,-500.0,0.00014786,2]
[341914654,1731281435064,-500.0,0.00014786,2]
[341914655,1731281435073,-500.0,0.00014786,2]
[341914656,1731281435082,-500.0,0.00014786,2]
[341914657,1731281435092,-500.0,0.00014787,2]
[341914658,1731281435101,-500.0,0.00014787,2]
[341914659,1731281435110,-500.0,0.00014787,2]
[341914660,1731281435120,-500.0,0.00014787,2]
[341914661,1731281435129,-608.1925455,0.00014787,2]
[341914662,1731281435138,-566.38480305,0.00014787,2]
[341914663,1731281435147,-500.0,0.00014787,2]
[341914664,1731281435157,-500.0,0.00014787,2]
[341914665,1731281435166,-500.0,0.00014787,2]
[341914666,1731281435175,-500.0,0.00014787,2]
[341914667,1731281435184,-500.0,0.00014787,2]
[341914668,1731281435194,-500.0,0.00014787,2]
[341914669,1731281435202,-500.0,0.00014787,2]
[341914670,1731281435212,-513.10250805,0.00014787,2]
[341914671,1731281435221,-500.0,0.00014787,2]
[341914672,1731281435231,-500.0,0.00014787,2]
[341914673,1731281435240,-500.0,0.00014787,2]
[341914674,1731281435251,-500.0,0.00014787,2]
[341914675,1731281435260,-500.0,0.00014787,2]
[341914676,1731281435269,-500.0,0.00014787,2]
[341914677,1731281435278,-500.0,0.00014787,2]
[341914678,1731281435288,-500.0,0.00014787,2]
[341914679,1731281435298,-534.23222599,0.00014787,2]
[341914680,1731281435307,-500.0,0.00014787,2]
[341914681,1731281435318,-500.0,0.00014787,2]
[341914682,1731281435327,-500.0,0.00014787,2]
[341914683,1731281435337,-500.0,0.00014787,2]
[341914684,1731281435346,-500.0,0.00014787,2]
[341914685,1731281435355,-500.0,0.00014787,2]
[341914686,1731281435364,-500.0,0.00014787,2]
[341914687,1731281435374,-500.0,0.00014787,2]
[341914688,1731281435383,-500.0,0.00014787,2]
[341914689,1731281435392,-500.0,0.00014787,2]
[341914690,1731281435401,-500.0,0.00014787,2]
[341914691,1731281435410,-500.0,0.00014787,2]
[341914692,1731281435606,-500.0,0.00014787,2]
[341914693,1731281435615,-500.0,0.00014787,2]
[341914694,1731281435626,-150.0,0.00014787,2]
[341914695,1731281435636,-835.759,0.0001479,2]
[341914696,1731281435645,-150.0,0.00014791,2]
[341914697,1731281435656,-150.0,0.00014796,2]
[341914698,1731281435665,-150.0,0.00014797,2]
[341914699,1731281435674,-150.0,0.00014797,2]
[341914700,1731281435683,-1797.61120695,0.00014799,2]
[341914701,1731281435693,-150.0,0.00014799,2]
[341914702,1731281435703,-1000.0,0.000148,2]
[341914703,1731281435712,-1000.0,0.000148,3]
[341914704,1731281435721,-1000.0,0.000148,4]
[341914705,1731281435731,-1144.0,0.000148,5]
[341914706,1731281435739,-150.0,0.00014802,2]
[341914707,1731281435749,-150.0,0.00014803,2]
[341914708,1731281435759,-150.0,0.00014806,2]
[341914709,1731281435772,-150.0,0.00014807,2]
[341914710,1731281435781,-150.0,0.0001481,2]
[341914711,1731281435790,-150.0,0.00014816,2]
[341914712,1731281435800,-150.0,0.00014819,2]
[341914713,1731281435810,-150.0,0.00014822,2]
[341914714,1731281435819,-150.0,0.00014822,2]
[341914715,1731281435829,-281.5849244,0.00014823,2]
[341914716,1731281435839,-150.0,0.00014825,2]
[341914717,1731281435848,-150.0,0.00014827,2]
[341914718,1731281435857,-150.0,0.00014829,2]
[341914719,1731281435866,-150.0,0.00014839,2]
[341914720,1731281435879,-150.0,0.0001484,2]
[341914721,1731281435888,-500.0,0.00014846,2]
[341914722,1731281435897,-836.95,0.00014846,2]
[341914723,1731281435907,-500.0,0.00014846,2]
[341914724,1731281435915,-500.0,0.00014846,2]
[341914725,1731281435924,-2246.58,0.00014846,2]
[341914726,1731281435933,-2236.88,0.00014846,2]
[341914727,1731281435943,-2630.28,0.00014846,2]
[341914728,1731281435952,-708.8,0.00014846,2]
[341914729,1731281435961,-500.0,0.00014846,2]
[341914730,1731281435970,-500.0,0.00014846,2]
[341914731,1731281435980,-2821.67,0.00014846,2]
[341914732,1731281435989,-500.0,0.00014846,2]
[341914733,1731281435998,-500.0,0.00014846,2]
[341914734,1731281436007,-819.76,0.00014846,2]
[341914735,1731281436016,-971.69,0.00014846,2]
[341914736,1731281436025,-1065.61,0.00014846,2]
[341914737,1731281436034,-500.0,0.00014846,2]
[341914738,1731281436043,-500.0,0.00014846,2]
[341914739,1731281436053,-500.0,0.00014846,2]
[341914740,1731281436062,-500.0,0.00014846,2]
[341914741,1731281436072,-1250.89,0.00014846,2]
[341914742,1731281436081,-352.24897375,0.00014846,2]
[341914743,1731281436090,-500.0,0.00014846,2]
[341914744,1731281436101,-291.20737183,0.00014846,2]
[341914745,1731281436110,-305.55393181,0.00014846,2]
[341914746,1731281436119,-198.73742908,0.00014846,2]
[341914747,1731281436132,-2152.06,0.00014846,2]
[341914748,1731281436142,-3059.53,0.00014846,2]
[341914749,1731281436151,-523.00616864,0.00014846,2]
[341914750,1731281436160,-2104.62,0.00014846,2]
[341914751,1731281436170,-500.0,0.00014846,2]
[341914752,1731281436179,-2725.56,0.00014846,2]
[341914753,1731281436189,-422.46629693,0.00014846,2]
[341914754,1731281436198,-500.0,0.00014846,2]
[341914755,1731281436208,-1404.35,0.00014846,2]
[341914756,1731281436217,-9375.0,0.00014846,2]
[341914757,1731281436226,-485.86006819,0.00014846,2]
[341914758,1731281436236,-2549.76,0.00014846,2]
[341914759,1731281436245,-500.0,0.00014846,2]
[341914760,1731281436254,-500.0,0.00014846,2]
[341914761,1731281436263,-719.8,0.00014846,2]
[341914762,1731281436273,-500.0,0.00014846,2]
[341914763,1731281436282,-1000.0,0.00014846,2]
[341914764,1731281436291,-500.0,0.00014846,2]
[341914765,1731281436300,-500.0,0.00014846,2]
[341914766,1731281436309,-995.6,0.00014846,2]
[341914767,1731281436318,-500.0,0.00014846,2]
[341914768,1731281436327,-1127.11,0.00014846,2]
[341914769,1731281436337,-500.0,0.00014847,2]
[341914770,1731281436346,-521.70229524,0.00014847,2]
[341914771,1731281436355,-1349.9,0.00014847,2]
[341914772,1731281436364,-1349.9,0.00014847,2]
[341914773,1731281436378,-926.39,0.00014847,2]
[341914774,1731281436388,-926.39,0.00014847,2]
[341914775,1731281436397,-2462.27,0.00014847,2]
[341914776,1731281436407,-2462.27,0.00014847,2]
[341914777,1731281436416,-2072.21,0.00014847,2]
[341914778,1731281436425,-2072.21,0.00014847,2]
[341914779,1731281436435,-880.84,0.00014847,2]
[341914780,1731281436444,-880.84,0.00014847,2]
[341914781,1731281436453,-664.51,0.00014847,2]
[341914782,1731281436463,-664.51,0.00014847,2]
[341914783,1731281436472,-500.0,0.00014847,2]
[341914784,1731281436481,-500.0,0.00014847,2]
[341914785,1731281436490,-1463.86,0.00014847,2]
[341914786,1731281436499,-1463.86,0.00014847,2]
[341914787,1731281436509,-635.83,0.00014847,2]
[341914788,1731281436518,-635.83,0.00014847,2]
[341914789,1731281436527,-500.0,0.00014847,2]
[341914790,1731281436536,-500.0,0.00014847,2]
[341914791,1731281436545,-500.0,0.00014847,2]
[341914792,1731281436554,-500.0,0.00014847,2]
[341914793,1731281436563,-500.0,0.00014848,2]
[341914794,1731281436572,-500.0,0.00014848,2]
[341914795,1731281436581,-500.0,0.00014848,2]
[341914796,1731281436590,-500.0,0.00014848,2]
[341914797,1731281436600,-500.0,0.00014848,2]
[341914798,1731281436609,-500.0,0.00014848,2]
[341914799,1731281436618,-500.0,0.00014848,2]
[341914800,1731281436631,-500.0,0.00014848,2]
[341914801,1731281436640,-500.0,0.00014848,2]
[341914802,1731281436650,-500.0,0.00014848,2]
[341914803,1731281436660,-500.0,0.00014848,2]
[341914804,1731281436669,-500.0,0.00014848,2]
[341914805,1731281436679,-500.0,0.00014848,2]
[341914806,1731281436688,-500.0,0.00014848,2]
[341914807,1731281436697,-500.0,0.00014848,2]
[341914808,1731281436706,-500.0,0.00014848,2]
[341914809,1731281436715,-500.0,0.00014848,2]
[341914810,1731281436725,-500.0,0.00014848,2]
[341914811,1731281436734,-500.0,0.00014848,2]